{"text_format":"3","workbook":"xlsx","n_sheets":13,"sheets":["התחלה","היסודות","מבוא לפונקציות","AVERAGE","MIN ו- MAX","תאריך ושעה","צירוף טקסט ומספרים","משפטי IF","VLOOKUP","פונקציות מותנות","אשף הפונקציות","שגיאות בנוסחאות","מידע נוסף"],"not_rendered":{"images":30,"defined_names":21},"read":"whole","date_system":"1900"}

{"sheet":"התחלה","index":0,"n_rows":4,"n_cols":1,"rows_kept":4}
[]
["תחילת העבודה עם נוסחאות"]
["בשלבים ספורים, תוכל להתחיל לבנות נוסחאות ופונקציות ב- Excel, יישום הגיליון האלקטרוני החזק ביותר בעולם."]
["חזור לראש הדף על-ידי הקשה על CTRL+HOME. כדי להתחיל בסיור, הקש CTRL+‏PAGE DOWN."]

{"sheet":"היסודות","index":1,"n_rows":43,"n_cols":10,"rows_kept":43}
["היסודות: ביצוע פעולות מתמטיות ב- Excel"]
["באפשרותך לחבר, לחסר, להכפיל ולחלק ב- Excel מבלי להשתמש בפונקציות מוכללות כלשהן. כל שעליך לעשות הוא להשתמש בכמה אופרטורים בסיסיים: +, -, *, /. כל הנוסחאות מתחילות בסימן שוויון (=).\n",null,"מספרים לשימוש:",null,"פעולה:","נוסחאות:","תשובות:"]
["כדי לחבר, בחר את תא F3, הקלד ‎=C3+C4 ולאחר מכן הקש Enter. \n",null,1,null,"חיבור (+) ",null,{"$f":"C3+C4","v":3}]
["כדי לחסר, בחר את תא F4, הקלד ‎=C3-C4 ולאחר מכן הקש Enter. ",null,2,null,"חיסור (-) ",null,{"$f":"C3-C4","v":-1}]
["כדי להכפיל, בחר את תא F5, הקלד ‎=C3*C4 ולאחר מכן הקש Enter.\n",{"$nulls":3},"כפל (*) ",null,{"$f":"C3*C4","v":2}]
["כדי לחלק, בחר את תא F6, הקלד ‎=C3/C4 ולאחר מכן הקש Enter.\n",{"$nulls":3},"חילוק (/) ",null,{"$f":"C3/C4","v":0.5}]
["הסתכל כאן: שנה את המספרים בתאים C3 ו- C4, וראה את תוצאות הנוסחה משתנות באופן אוטומטי.",{"$nulls":3},"חזקה (^) ",null,{"$f":"C3^C4","v":1}]
["משימה מיוחדת: באפשרותך להעלות ערך בחזקה באמצעות סימן התו ^, למשל, ‎=A1^A2. הזן אותו באמצעות Shift+6. בתא F7, הזן ‎=C3^C4."]
["פתח לקבלת פרטים נוספים"]
["השלב הבא"]
["מידע נוסף אודות נוסחאות, תאים וטווחים"]
["Excel מורכב מתאים בודדים המקובצים בשורות ובעמודות. השורות ממוספרות, והעמודות מסומנות באותיות. יש יותר ממיליון שורות ו- 16,000 עמודות, ובאפשרותך למקם נוסחאות בכל אחת מהן. \n"]
["נוסחאות יכולה להכיל הפניות לתאים, טווחים של הפניות לתאים, אופרטורים וקבועים. להלן דוגמאות לנוסחאות:\n\n‎=A1+B1\n‎=10+20\n‎=SUM(A1:A10)‎\n\n"]
["שים לב שבדוגמה השלישית לעיל, השתמשנו בפונקציה SUM. פונקציה היא פקודה שנבנתה מראש המקבלת ערך או ערכים, מחשבת אותם בצורה מסוימת ומחזירה תוצאה. למשל, הפונקציה SUM מקבלת את ההפניות לתאים או הטווחים שאתה מציין ומסכמת אותם. בדוגמה זו היא מקבלת את התאים A1 עד A10 ומסכמת אותם. Excel כולל יותר מ- 400 פונקציות, שניתן לעיין בהן בכרטיסיה 'נוסחאות'.\n"]
["נוסחאות עם פונקציות מתחילות בסימן שוויון ולאחר מכן מופיע שם הפונקציה עם הארגומנטים שלה (הערכים שבהם פונקציה משתמשת כדי לחשב) המוקפים בסוגריים. \n"]
["ניתן לאשר נוסחה על-ידי הקשה על Enter. ברגע שתעשה זאת, הנוסחה תחושב, והתוצאה תוצג בתא. כדי לראות את הנוסחה עצמה, באפשרותך להביט בשורת הנוסחאות מתחת לרצועת הכלים, או להקיש F2 כדי לעבור למצב עריכה, שבו תוכל לראות את הנוסחה בתא. הקש Enter שוב כדי לסיים את הנוסחה ולחשב את התוצאה.\n\n"]
["כמה הסברים לגבי נוסחאות"]
["‎=10+20 היא נוסחה, שבה 10 ו- 20 הם קבועים, והסימן + הוא אופרטור."]
["‎=SUM(A1:A10)‎ היא נוסחה, שבה SUM הוא שם הפונקציה, תו הסוגריים הפותח ותו הסוגריים הסוגר מכילים את הארגומנטים של הנוסחה, ו- A1:A10 הוא טווח התאים עבור הפונקציה."]
["‎=SUM(A1:A10,C1:C10)‎ היא נוסחה, שבה SUM הוא שם הפונקציה, תו הסוגריים הפותח ותו הסוגריים הסוגר מכילים את הארגומנטים של הנוסחה, ו- A1:A10,C1:C10 הם טווחי התאים עבור הפונקציה המופרדים באמצעות פסיק."]
["טוב לדעת: קבועים הם ערכים שאתה מזין בתאים או נוסחאות. בעוד שתוצאת החישוב של ‎=10+20 עשויה להיות זהה ל- ‎=A1+B1, לא מומלץ להשתמש בקבועים. מדוע? מאחר שלא ניתן לראות את הקבוע בקלות מבלי לבחור את התא ולחפש אותו. הדבר עלול להקשות עליך לשנות אותו במועד מאוחר יותר. קל הרבה יותר להציב את הקבועים בתאים, שבהם ניתן להתאים אותם בקלות, ולבצע הפניה אליהם בנוסחאות שלך.\n\nלדוגמה: בחר את התא הצהוב המכיל את המספר 12 להלן. תוכל לראות שהשתמשנו בפונקציה SUM עם טווח תאים. לא הקלדנו \"4\" או \"8\" ישירות בנוסחה. \n"]
["הקודם"]
["הבא"]
["מידע נוסף באינטרנט"]
["השתמש ב- Excel כמחשבון"]
["מבט כולל על נוסחאות ב- Excel"]
["פונקציות של Excel (לפי קטגוריה) "]
["פונקציות של Excel (בסדר אלפביתי) "]
["הדרכה מקוונת בחינם של Excel"]
{"$rows_empty":10}
[{"$nulls":9},"ערכים"]
[{"$nulls":9},4]
[{"$nulls":9},8]
[{"$nulls":9},{"$f":"SUM(J41:J42)","v":12}]

{"sheet":"מבוא לפונקציות","index":2,"n_rows":51,"n_cols":7,"rows_kept":51}
["מבוא לפונקציות"]
["פונקציות מאפשרות לבצע מגוון פעולות, כגון פעולות מתמטיות, חיפוש ערכים ואפילו חישוב תאריכים ושעות. בוא ננסה כמה דרכים לחיבור ערכים באמצעות הפונקציה SUM.",null,"פירות","סכום",null,"בשר","סכום"]
["תחת העמודה 'סכום' עבור 'פירות' (תא D7), הזן ‎=SUM(D3:D6)‎, או הקלד ‎=SUM(‎ ולאחר מכן בחר טווח זה באמצעות העכבר, והקש Enter. בעקבות זאת יסוכמו הערכים בתאים D3‏, D4‏, D5 ו- D6. התשובה צריכה להיות 170.\n",null,"תפוחים",50,null,"בשר בקר",50]
["עכשיו בוא ננסה את 'סכום אוטומטי'. בחר את התא תחת העמודה עבור 'בשר' (תא G7) ולאחר מכן עבור אל 'נוסחאות' > 'סכום אוטומטי' > בחר 'סכום'. תראה את Excel מזין את הנוסחה עבורך באופן אוטומטי. הקש Enter כדי לאשר אותה. התכונה 'סכום אוטומטי' כוללת את כל הפונקציות הנפוצות ביותר.\n",null,"תפוזים",20,null,"עוף",30]
["הנה קיצור מקשים נוח. בחר את תא D15, הקש ‎Alt יחד עם מקש =‎ ולאחר מכן הקש Enter. הפונקציה SUM מוזנת עבורך באופן אוטומטי.",null,"בננות",60,null,"נקניק",10]
["פתח לקבלת פרטים נוספים",null,"לימונים",40,null,"דג",50]
["משימה מיוחדת\nנסה את הפונקציה COUNT באמצעות כל אחת מהשיטות שניסית כבר. הפונקציה COUNT סופרת את התאים בטווח המכילים מספרים.",null,"סכום > ",{"$f":"SUM(D3:D6)","v":170},null,"סכום > "]
["השלב הבא"]
["מידע נוסף אודות פונקציות",null,"פריט","סכום",null,"פריט","סכום"]
["עבור אל הכרטיסיה 'נוסחאות' ועיין ב'ספריית פונקציות', שבה פונקציות מפורטות לפי קטגוריה, כגון טקסט, תאריך ושעה וכן הלאה. האפשרות 'הוספת פונקציה' תאפשר לך לחפש פונקציות לפי שם, ולהפעיל אשף פונקציות שיכול לעזור לך לבנות את הנוסחה. \n\nכאשר תתחיל להקליד שם פונקציה לאחר הקשה על =, Excel יפעיל את Intellisense, אשר יפרט את כל הפונקציות המתחילות באותיות שאתה מקליד. כאשר תמצא את הפונקציה הרצויה, הקש Tab, ו- Excel ישלים את שם הפונקציה באופן אוטומטי ויזין את תו הסוגריים הפותח עבורך. הוא גם יציג את הארגומנטים האופציונליים והנדרשים. \n\n\n\nכעת נבחן את האנטומיה של מספר פונקציות. הפונקציה SUM בנויה באופן הבא:",null,"לחם",50,null,"לחם",50]
["אם הפונקציה SUM היתה יכולה לדבר, היא היתה אומרת להחזיר את הסכום של כל הערכים בתאים D35 עד D38, וכל עמודה H‏. SUM הוא שם הפונקציה, D35:D38 הוא ארגומנט הטווח הראשון, הנדרש כמעט תמיד, ו- H:H הוא ארגומנט הטווח השני, המופרד באמצעות פסיק. עכשיו, בוא ננסה פונקציה שאינה דורשת ארגומנטים.\n",null,"סופגניות",100,null,"סופגניות",100]
["הפונקציה TODAY מחזירה את התאריך של היום. היא תתעדכן באופן אוטומטי כאשר Excel יבצע חישוב מחדש.",null,"עוגיות",40,null,"עוגיות",40]
["הסתכל כאן\nבחר תאים אלה. לאחר מכן בפינה השמאלית התחתונה של חלון  Excel, חפש את 'סכום: 170' בשורה התחתונה. שורה זו נקראת שורת המצב, וזוהי דרך נוספת למצוא במהירות סכום כולל ופרטים אחרים לגבי תא או טווח שנבחר. ",null,"עוגות",50,null,"עוגות",50]
["פרט חשוב\nלחץ פעמיים על תא זה. תבחין במספר 100 לקראת הסוף. אף על פי שאפשר להציב מספרים בנוסחה שכזו, זה לא מומלץ אלא אם כן זה ממש הכרחי. זהו קבוע, וקל לשכוח שהוא שם. המלצנו להפנות לתא אחר במקום זאת, כגון התא F51. כך ניתן להבחין בו בקלות והוא לא מוסתר בתור הנוסחה. ",null,"פשטידות",20,null,"פשטידות",20]
["מידע נוסף באינטרנט",null,"סכום > ",null,null,"ספירה >"]
["הכל אודות הפונקציה SUM"]
["שימוש ב'סכום אוטומטי' כדי לסכם מספרים"]
["הכל אודות הפונקציה COUNT"]
["הדרכה מקוונת בחינם של Excel"]
["חזור למעלה"]
["השלב הבא"]
{"$rows_empty":12}
[null,null,"פירות","סכום"]
[null,null,"תפוחים",50]
[null,null,"תפוזים",20]
[null,null,"בננות",60]
[null,null,"לימונים",40]
[null,null,"סכום > ",{"$f":"SUM(D35:D38)","v":170}]
[]
[]
[]
[]
[null,null,"פריט","סכום"]
[null,null,"מכוניות",20]
[null,null,"משאיות",10]
[null,null,"אופניים",10]
[null,null,"גלגיליות",40]
[]
[{"$nulls":3},"סכום כולל:",null,"ערך נוסף","סכום כולל חדש"]
[{"$nulls":3},{"$f":"SUM(D45:D48,100)","v":180},null,100,{"$f":"SUM(D45:D48,F51)","v":180}]

{"sheet":"AVERAGE","index":3,"n_rows":15,"n_cols":7,"rows_kept":15}
["הפונקציה AVERAGE"]
["השתמש בפונקציה AVERAGE כדי לקבל את ממוצע המספרים בטווח תאים.",null,"פירות","סכום",null,"בשר","סכום"]
["בחר את תא D7 ולאחר מכן השתמש בסכום אוטומטי כדי להוסיף פונקציית AVERAGE.",null,"תפוחים",50,null,"בשר בקר",50]
["כעת, בחר את תא G7 והזן פונקציית AVERAGE על-ידי הקלדת ‎=AVERAGE(G3:G6)‎. ",null,"תפוזים",20,null,"עוף",30]
["בתא D15, ניתן להשתמש באפשרות סכום אוטומטי או להקליד כדי להזין פונקציית AVERAGE אחרת. ",null,"בננות",60,null,"נקניק",10]
["הסתכל כאן\nבחר טווח מספרים כלשהו ולאחר מכן חפש בשורת המצב ממוצע מיידי.\n",null,"לימונים",40,null,"דג",50]
["הפעל את הגיליון הקודם",null,"ממוצע >",null,null,"ממוצע >"]
["עבור אל הגיליון הבא"]
["משימה מיוחדת\nנסה להשתמש כאן בפונקציה MEDIAN או MODE. \n\nMEDIAN מספקת לך את הערך באמצע ערכת הנתונים, ואילו \nMODE מספקת את הערך המופיע בתדירות הגבוהה ביותר.\n",null,"פריט","סכום",null,"פריט","סכום"]
["קישורים למידע נוסף באינטרנט",null,"לחם",50,null,"לחם",50]
["בחר כדי ללמוד הכל אודות הפונקציה AVERAGE באינטרנט",null,"סופגניות",100,null,"סופגניות",100]
["בחר כדי ללמוד הכל אודות הפונקציה MEDIAN באינטרנט",null,"עוגיות",40,null,"עוגיות",40]
["בחר כדי ללמוד הכל אודות הפונקציה MODE באינטרנט",null,"עוגות",50,null,"עוגות",50]
["בחר כדי ללמוד אודות הדרכה מקוונת בחינם של Excel באינטרנט",null,"פשטידות",20,null,"פשטידות",20]
[null,null,"ממוצע >"]

{"sheet":"MIN ו- MAX","index":4,"n_rows":15,"n_cols":7,"rows_kept":15}
["הפונקציות MIN ו- MAX"]
["השתמש בפונקציה MIN כדי לקבל את המספר המינימלי בטווח תאים.",null,"פירות","סכום",null,"בשר","סכום"]
["השתמש בפונקציה MAX כדי לקבל את המספר המקסימלי בטווח תאים.",null,"תפוחים",50,null,"בשר בקר",50]
["בחר את תא D7 ולאחר מכן השתמש באשף הסכום האוטומטי כדי להוסיף פונקציית MIN.\n",null,"תפוזים",20,null,"עוף",30]
["כעת, בחר את תא G7 והזן פונקציית MAX על-ידי הקלדת ‎=MAX(G3:G6)‎.\n",null,"בננות",60,null,"נקניק",10]
["בתא D15, ניתן להשתמש באשף הסכום האוטומטי או להקליד כדי להזין פונקציית MIN או MAX. \n",null,"לימונים",40,null,"דג",50]
["מידע נוסף באינטרנט\n",null,"מינימום >",null,null,"מקסימום >"]
["הכל אודות הפונקציה MIN"]
["הכל אודות הפונקציה MAX",null,"פריט","סכום",null,"פריט","סכום"]
["הדרכה מקוונת בחינם של Excel",null,"לחם",50,null,"לחם",50]
["טוב לדעת\nבאפשרותך להשתמש בפונקציה MIN או MAX עם מספר טווחים או ערכים כדי להציג את הגדול ביותר או הקטן ביותר מבין ערכים אלה, כגון ‎=MIN(A1:A10,B1:B10)‎, או ‎=MAX(A1:A10,B1)‎, כאשר B1 מכיל ערך סף, כגון 10, ובמקרה זה הנוסחה לא תחזיר לעולם תוצאה קטנה יותר מ- 10.\n",null,"סופגניות",100,null,"סופגניות",100]
[null,null,"עוגיות",40,null,"עוגיות",40]
[null,null,"עוגות",50,null,"עוגות",50]
[null,null,"פשטידות",20,null,"פשטידות",20]
[null,null,"מינימום או מקסימום >",{"$nulls":3},{"$f":"MIN(G10:G14,10)","v":10}]

{"sheet":"תאריך ושעה","index":5,"n_rows":47,"n_cols":6,"rows_kept":47,"merged":[[4,2,4,3],[26,2,26,3],[30,2,30,3],[44,2,44,3]]}
["פונקציות תאריך"]
["Excel יכול לספק לך את התאריך הנוכחי, בהתאם להגדרות האזוריות של המחשב. באפשרותך גם לחבר ולחסר תאריכים."]
["בחן את הפונקציה TODAY, שמספקת את התאריך של היום. מדובר בפונקציות חיות, או נדיפות, כך שאם תפתח את חוברת העבודה מחר, הפונקציה תספק את התאריך של מחר. הזן ‎=TODAY()‎ בתא D6. \n"]
["חיסור תאריכים - הזן את יום ההולדת הבא שלך בתבנית DD/MM/YY בתא D7, ו- Excel יציין בפניך עוד כמה ימים נותרו באמצעות הנוסחה ‎=D7-D6 בתא D8.\n"]
["חיבור תאריכים - נניח שברצונך לדעת עד איזה תאריך יש לשלם חשבון, או מתי עליך להחזיר ספר לספריה. באפשרותך להוסיף ימים לתאריך כדי לברר זאת. בתא D10, הזן מספר ימים אקראי. בתא D11, הוספנו את הנוסחה ‎=D6+D10 כדי לחשב את תאריך היעד החל מהיום.\n",null,"פונקציות תאריך"]
["טוב לדעת\nExcel שומר תאריכים ושעות בהתבסס על מספר הימים החל מ- 1 בינואר 1900. שעות נשמרות כחלקי ימים בצורת שבר בהתבסס על דקות. לכן, 01/01/2017 12:30 מאוחסן בפועל כ- 42736.5208. אם השעה או התאריך מוצגים כמספרים כגון זה, באפשרותך להקיש Ctrl+1 > 'מספר' > בחר תבנית תאריך או שעה. ",null,"התאריך של היום:",null,null,{"$f":"IF(D6=TODAY(),\"הבנת!\",\"\")","v":""}]
["פרט חשוב\nאם אינך מעוניין ש- Excel יציג מספר שלילי מאחר שלא הזנת עדיין את יום ההולדת שלך, באפשרותך להשתמש בפונקציה IF באופן הבא: ‎=IF(D7=\"\",\"\",D7-D6)‎, כלומר \"אם D7 שווה לשום דבר, אז אל תציג שום דבר, אחרת תציג את D7 פחות D6\".\n",null,"יום ההולדת שלך:"]
["פונקציות שעה",null,"ימים עד ליום ההולדת שלך:",{"$f":"D7-D6","v":0}]
["Excel יכול לספק לך את השעה הנוכחית, בהתאם להגדרות האזוריות של המחשב. באפשרותך גם לחבר ולחסר שעות. לדוגמה, ייתכן שעליך לעקוב כמה שעות עובד מסוים עבד מדי שבוע, ולחשב את השכר והשעות הנוספות שלו.\n"]
["בתא D28, הזן את הפונקציה ‎=NOW()‎, אשר תספק את השעה הנוכחית, ותתעדכן בכל פעם ש- Excel יבצע חישוב. אם עליך לשנות את תבנית השעה, באפשרותך לעבור אל Ctrl+1 > 'מספר' > 'שעה' > בחר את התבנית הרצויה.\n",null,"ימי תקופת חסד:"]
["סיכום שעות בין זמנים - בתא D36 הזנו את הנוסחה ‎=((D35-D32)-(D34-D33))*24, המחשבת את שעת ההתחלה ושעת הסיום של אדם כלשהו ולאחר מכן מחסירה את זמן הפסקת הצהריים. ה- ‎*24 בסוף הנוסחה ממיר את חלק השבר של היום ש- Excel רואה לשעות. עם זאת, תצטרך לעצב את התא כמספר. לשם כך, עבור אל 'בית' > 'עיצוב' > 'תאים' (Ctrl+1) > 'מספר' > 'מספר' > 2 ספרות עשרוניות.\n\n",null,"יש לשלם את החשבון עד:",{"$f":"D6+D10","v":"00:00:00"}]
["אם נוסחה זו היתה יכולה לדבר, היא היתה אומרת, \"קח את שעת היציאה והחסר אותה משעת היציאה, לאחר מכן החסר את שעת סיום הפסקת הצהריים משעת תחילת הפסקת הצהריים, ולאחר מכן הכפל הכל ב- 24 כדי להמיר את השעות של Excel המוצגות כשבר לשעות\", או =((שעת יציאה - שעת כניסה)-(תחילת הפסקת הצהריים - סיום הפסקת הצהריים))*24."]
["הקודם"]
["הבא"]
["מידע נוסף באינטרנט"]
["הכל אודות הפונקציה TODAY"]
["הכל אודות הפונקציה NOW"]
["הכל אודות הפונקציה DATE"]
["הדרכה מקוונת בחינם של Excel"]
{"$rows_empty":7}
[null,null,"פונקציות שעה"]
[null,null,"השעה הנוכחית:"]
[]
[]
[null,null,"שעות עבודה יומיות"]
[null,null,"שעת כניסה:","08:00:00"]
[null,null,"סיום הפסקת הצהריים:","12:00:00"]
[null,null,"תחילת הפסקת הצהריים:","13:00:00"]
[null,null,"שעת יציאה:","17:00:00"]
[null,null,"סה\"כ שעות:",{"$f":"((D35-D32)-(D34-D33))*24","v":8.000000000000002}]
{"$rows_empty":8}
[null,null,"תאריך ושעה סטטיים"]
[null,null,"תאריך:","2017-09-27"]
[null,null,"שעה:","08:52:00"]

{"sheet":"צירוף טקסט ומספרים","index":6,"n_rows":37,"n_cols":6,"rows_kept":37,"merged":[[26,2,26,3],[30,2,30,3],[34,2,34,3]]}
["צירוף טקסט מתאים שונים"]
["במקרים רבים, תרצה לצרף טקסט שנמצא בתאים שונים ב- Excel. הדוגמה המופיעה כאן היא נפוצה מאוד. יש לך שמות פרטיים ושמות משפחה, וברצונך לשלב אותם כשם פרטי, שם משפחה או שם מלא. למרבה המזל, Excel מאפשר לנו לעשות זאת בעזרת סימן האמפרסנד (&), שניתן להזין אותו באמצעות Shift+7.\n",null,"שם פרטי","שם משפחה","שם משפחה, שם פרטי","שם מלא"]
["בתא E3, הזן ‎=D3&C3 כדי לצרף את השם הפרטי ושם המשפחה. \n",null,"טלי","כספי",{"$f":"D3&\", \"&C3","v":"כספי, טלי"},{"$f":"C3&\" \"&D3","v":"טלי כספי"}]
["עם זאת, הטקסט \"כספיטלי\" לא נראה תקין. עלינו להוסיף פסיק ורווח. לשם כך, נשתמש במרכאות כדי ליצור מחרוזת טקסט חדשה. הפעם, הזן ‎=D3&\", \"&C3. החלק ‎&\", \"&‎ מאפשר לנו לצרף פסיק ורווח לטקסט בתאים.\n",null,"אמיתי","אוזן"]
["כדי ליצור את השם המלא, אנו נצרף שם פרטי ושם משפחה, אך נשתמש ברווח ללא פסיק. ב- F3, הזן ‎=C3&\" \"&D3.\n",null,"נעם","מעוז"]
["פתח לקבלת פרטים נוספים",null,"אלה","ראובני"]
["הבא",null,"ירון","מישה"]
["שימוש בטקסט ומספרים יחד",null,"איתן","גונן"]
["כעת נשתמש ב- & כדי לצרף טקסט ומספרים, ולא רק טקסט וטקסט\n\nהבט בתאים C28:D29. רואה שהתאריכים והשעות נמצאים בתאים נפרדים? ניתן לשלב אותם באמצעות הסימן &, כפי שניתן לראות בתאים C32:C33, אבל זה לא נראה טוב, נכון? למרבה הצער, Excel אינו יודע כיצד ברצונך לעצב את המספרים, ולכן הוא מפרק אותם לתבנית הבסיסית ביותר שלהם, שהיא התאריך הסידורי במקרה זה. אנחנו צריכים לומר ל- Excel במפורש כיצד לעצב את חלק המספר של הנוסחה, כך שיוצג באופן הרצוי במחרוזת הטקסט המתקבלת. באפשרותך לעשות זאת באמצעות הפונקציה TEXT וקוד תבנית.",null,"דניאל","מלמד"]
["בתא C36, הזן ‎=C28&\" \"&TEXT(D28,\"DD/MM/YYYY\")‎. DD/MM/YYYY הוא קוד התבנית עבור יום/שנה/חודש, כגון 25/09/2017.\n",null,"שיר","רוזנשטיין"]
["בתא C37, הזן ‎=C29&\" \"&TEXT(D29,\"H:MM\")‎. H:MM הוא קוד התבנית עבור שעות:דקות, כגון 13:30.\n\n"]
["הסתכל כאן\nנוסחאות, בייחוד נוסחאות גדולות, עלולות לעתים להיות קשות לקריאה, אך ניתן להפריד בין החלקים שלהם באמצעות רווחים, למשל באופן הבא:\n\n‎=C28 & \" \" & TEXT(D28,\"DD/MM/YYYY\")‎"]
["כדאי לבחון\nאם אינך יודע באיזה קוד תבנית להשתמש, באפשרותך להשתמש ב- Ctrl+1 > 'מספר' כדי לעצב כל תא באופן הרצוי. לאחר מכן בחר באפשרות 'מותאם אישית'. באפשרותך להעתיק את קוד התבנית המוצג בחזרה לנוסחה שלך."]
["מידע נוסף באינטרנט"]
["הכל אודות הפונקציה TEXT"]
["שילוב טקסט ומספרים"]
["הדרכה מקוונת בחינם של Excel"]
{"$rows_empty":9}
[null,null,"שימוש בטקסט ובמספרים"]
[null,null,"התאריך של היום:",{"$f":"TODAY()","v":"2021-10-19"}]
[null,null,"השעה הנוכחית:",{"$f":"NOW()","v":44488.407802546295}]
[]
[null,null,"צירוף טקסט ומספרים"]
[null,null,{"$f":"C28&\" \"&D28","v":"התאריך של היום: 44488"}]
[null,null,{"$f":"C29&\" \"&D29","v":"השעה הנוכחית: 44488.4078025463"}]
[]
[null,null,"עיצוב טקסט ומספרים"]
[null,null,{"$f":"C28 &\" \"& TEXT(D28,\"DD/MM/YYYY\")","v":"התאריך של היום: 19/10/2021"}]
[null,null,{"$f":"C29&\" \"&TEXT(D29,\"H:MM\")","v":"השעה הנוכחית: 9:47"}]

{"sheet":"משפטי IF","index":7,"n_rows":37,"n_cols":6,"rows_kept":37,"merged":[[7,2,7,3]]}
["משפטי IF"]
["משפטי IF מאפשרים לך לבצע השוואות לוגיות בין תנאים. משפט IF מציין בדרך כלל שאם תנאי אחד מתקיים צריך לבצע פעולה כלשהי, ואם לא, צריך לבצע פעולה אחרת. הנוסחאות יכולות להחזיר טקסט, ערכים ואף חישובים נוספים."]
["בתא D9 הזן ‎=IF(C9=\"Apple\",TRUE,FALSE)‎. התשובה הנכונה היא TRUE. \n"]
["העתק את D9 ל- D10. התשובה כאן צריכה להיות FALSE, מכיוון שתפוז אינו תפוח.\n"]
["נסה דוגמה נוספת על-ידי התבוננות בנוסחה בתא D12. כתבנו עבורך את הנוסחה ‎=IF(C12<100,\"Less than 100\",\"Greater than or equal to 100\"). מה יקרה אם תזין מספר גדול יותר מ- 100 בתא C12?\n"]
["פרט חשוב\nהמילים TRUE ו- FALSE שונות ממילים אחרות בנוסחאות Excel בכך שהן לא צריכות להופיע במרכאות, ו- Excel הופך את האותיות בהן לרישיות באופן אוטומטי. גם מספרים אינם צריכים להופיע במרכאות. טקסט רגיל, כגון Yes או No, צריך להופיע במירכאות. לדוגמה: \n‎=IF(C9=\"Apple\",\"Yes\",\"No\")"]
["פתח לקבלת פרטים נוספים"]
["הבא",null,"משפטי IF"]
["משפט IF עם פונקציה אחרת",null,"Apple"]
["משפטי IF יכולים גם לכפות ביצוע חישובים נוספים אם תנאי מסוים מתקיים. כאן אנו עומדים להעריך תא כדי לברר אם יש לחייב במע\"מ, ולחשב אותו אם התנאי מתקיים.\n",null,"Orange"]
["בתא F33, הזנו את הנוסחה ‎=IF(E33=\"Yes\",F31*SalesTax,0)‎. הגדרנו את SalesTax כטווח בעל שם עם ערך של 0.0825. הנוסחה שלנו מציינת שאם תא E33 שווה ל- Yes, אז יש להכפיל את תא F31 ב- SalesTax, אחרת יש להחזיר 0.\n\nנסה לשנות את Yes ל- No בתא E33 כדי לראות את החישוב משתנה."]
["לאחר מכן הוספנו משפט IF כדי לחשב דמי משלוח אם הדבר נדרש. בתא F35 תראה ‎=IF(E35=\"Yes\",SUM(D28:D29)*1.25,0)‎. נוסחה זו מציינת \"אם תא E35 היא Yes, אז קח את הסכום של העמודה 'כמות' בטבלה שלעיל והכפל אותו ב- 1.25, אחרת החזר 0\".\n",null,50,{"$f":"IF(C12<100,\"Less than 100\",\"Greater than or equal to 100\")","v":"Less than 100"}]
["לאחר מכן, שנה את הערך 1.25 בנוסחה בתא F35 ל\"משלוח\". כשאתה מתחיל להקליד,-התיקון האוטומטי של Excel אמור למצוא אותו עבורך. כשהוא עושה זאת, הקש Tab כדי להזין אותו. זהו טווח בעל שם, ואנו הזנו אותו מתוך 'נוסחאות' > 'הגדר שם'. כעת, אם אי פעם תצטרך לשנות את עלות המשלוח, תצטרך לעשות זאת במקום אחד בלבד, ותוכל להשתמש בשם 'משלוח' בכל מקום בחוברת העבודה.\n\n"]
["טוב לדעת\nבעת יצירת נוסחה, Excel ימקם באופן אוטומטי גבולות צבעוניים סביב כל הטווחים שמבוצעת אליהם הפניה בנוסחה, והטווחים המתאימים בנוסחה יהיו באותו הצבע. תוכל לראות זאת אם תבחר את תא F33 ותקיש F2 כדי לערוך את הנוסחה."]
["עצה ממומחים\nטווחים בעלי שם מאפשרים לך להגדיר תנאים או ערכים במקום אחד, ולאחר מכן להשתמש בהם ברחבי חוברת עבודה. ניתן לראות את כל הטווחים בעלי השם בחוברת עבודה זו על-ידי מעבר אל 'נוסחאות' > 'מנהל השמות'. לחץ כאן לקבלת מידע נוסף.\n"]
["הקודם"]
["הבא"]
["מידע נוסף באינטרנט"]
["הכל אודות הפונקציה IF"]
["הכל אודות הפונקציה IFS"]
["משפטי IF מתקדמים"]
["הדרכה מקוונת בחינם של Excel"]
[]
[]
[]
[]
[null,null,"פריט","כמות","עלות","סה\"כ"]
[null,null,"רכיב 1",2,{"v":9.760711585683554,"d":"₪ 9.76"},{"$f":"'משפטי IF'!$E$28:$E$29*'משפטי IF'!$D$28:$D$29","v":{"v":19.521423171367108,"d":"₪ 19.52"}}]
[null,null,"רכיב 2",3,{"v":3.4189202461080024,"d":"₪ 3.42"},{"v":10.256760738324008,"d":"₪ 10.26"}]
[]
[{"$nulls":3},"סכום ביניים",{"$f":"SUM('משפטי IF'!$E$28:$E$29)","v":{"v":13.179631831791557,"d":"₪ 13.18"}},{"$f":"SUM('משפטי IF'!F28:F29)","v":{"v":29.778183909691116,"d":"₪ 29.78"}}]
[]
[{"$nulls":3},"מע\"מ?","Yes",{"$f":"IF(E33=\"Yes\",F31*SalesTax,0)","v":{"v":2.456700172549517,"d":"₪ 2.46"}}]
[]
[{"$nulls":3},"משלוח?","Yes",{"$f":"IF(E35=\"Yes\",SUM(D28:D29)*1.25,0)","v":{"v":6.25,"d":"₪ 6.25"}}]
[]
[{"$nulls":3},"סה\"כ",null,{"$f":"SUM(F33,F31,F35)","v":{"v":38.48488408224063,"d":"₪ 38.48"}}]

{"sheet":"VLOOKUP","index":8,"n_rows":43,"n_cols":7,"rows_kept":43}
["VLOOKUP"]
["VLOOKUP היא אחת מהפונקציות הנמצאות בשימוש הנרחב ביותר ב- Excel (והיא גם אחת האהובות עלינו!). VLOOKUP מאפשרת לך לחפש ערך בעמודה בצד ימין, ולאחר מכן מחזירה מידע בעמודה אחרת משמאל אם היא מוצאת התאמה. VLOOKUP מציינת:\n"]
["‎=VLOOKUP(A1,B:C,2,FALSE)‎"]
["איזה נתון ברצונך לחפש?"]
["אם אתה מוצא אותו, כמה עמודות משמאל ברצונך לקבל ערך?"]
["היכן ברצונך לחפש אותו?"]
["האם אתה מעוניין בהתאמה מדויקת או בקירוב?"]
["בתא D22, הזן ‎=VLOOKUP(C22,C17:D20,2,FALSE)‎. התשובה הנכונה עבור תפוחים הוא 50. VLOOKUP חיפשה את הערך \"תפוחים\", מצאה אותו ולאחר מכן עברה לעמודה שמשמאל והחזירה את הסכום.\n\n"]
["כעת נסה זאת בעצמך במקטע \"בשר\", בתא G22. אתה אמור לקבל את הנוסחה ‎=VLOOKUP(F22,F17:G20,2,FALSE)‎.\n\n"]
["ניסוי\nנסה לבחור פריטים שונים מהרשימות הנפתחות. תוכל לראות שתאי התוצאות מעדכנים את עצמם באופן מיידי בערכים חדשים."]
["פתח לקבלת פרטים נוספים"]
["הבא"]
["VLOOKUP ו- #N/A"]
["באפן בלתי נמנע, תיקלע מתישהו למצב שבו הפונקציה VLOOKUP לא תמצא את מה שביקשת ממנה, ותחזיר שגיאה (#N/A). לעתים, הסיבה לכך היא שערך בדיקת המידע פשוט אינו קיים, או משום שתא ההפניה אינו מכיל עדיין ערך.\n"]
["אם ידוע לך שערך בדיקת המידע קיים, אך ברצונך להסתיר את השגיאה אם תא בדיקת המידע ריק, באפשרותך להשתמש במשפט IF. במקרה זה, נוכל לעטוף את נוסחת VLOOKUP הקיימת שלנו באופן הבא בתא D43:\n\n‎=IF(C43=\"\",\"\",VLOOKUP(C43,C37:D41,2,FALSE))‎\n\nנוסחה זו מציינת שאם תא C43 שווה לשום דבר (\"\"), אז אל תחזיר שום דבר, אחרת החזר את התוצאות של VLOOKUP. שים לב לתו הסוגריים הסוגר השני בסוף הנוסחה. תו זה סוגר את משפט ה- IF.\n"]
["אם אינך בטוח שערך בדיקת המידע קיים, אך ברצונך להעלים את השגיאה #N/A בכל זאת, באפשרותך להשתמש בפונקציה לטיפול בשגיאות הנקראת IFERROR בתא G43‏: ‎=IFERROR(VLOOKUP(F43,F37:G41,2,FALSE),\"\")‎. הפונקציה IFERROR מציינת שאם הפונקציה VLOOKUP מחזירה תוצאה חוקית, אז הצג אותה, אחרת אל תציג שום דבר (\"\"). לא הצגנו כאן שום דבר (\"\"), אבל ניתן גם להשתמש במספרים (0, 1, 2 וכן הלאה) או בטקסט, כגון \"הנוסחה שגויה\".\n",null,"פירות","סכום",null,"בשר","סכום"]
["פרט חשוב\nהפונקציה IFERROR מטפלת בשגיאות באופן כולל, כלומר היא תעלים כל שגיאה שהנוסחה שלך עלולה להתריע עליה. הדבר עלול לגרום לבעיות אם Excel מציג לך הודעה שלפיה הנוסחה שלך מכילה שגיאה אמיתית שיש לתקן אותה.\n\nכלל האצבע אומר לא להוסיף מטפלים בשגיאות לנוסחאות אלא אם כן אתה בטוח לחלוטין שהן פועלות כראוי.",null,"תפוחים",50,null,"בשר בקר",50]
["הקודם",null,"תפוזים",20,null,"עוף",30]
["הבא",null,"בננות",60,null,"נקניק",10]
["מידע נוסף באינטרנט",null,"לימונים",40,null,"דג",50]
["הכל אודות הפונקציה VLOOKUP"]
["הכל אודות הפונקציות INDEX/MATCH",null,"תפוחים",null,null,"נקניק"]
["הכל אודות הפונקציה IFERROR"]
["שימוש בטבלאות PivotTable לניתוח נתוני גליון עבודה"]
["הדרכה מקוונת בחינם של Excel"]
{"$rows_empty":9}
[null,null,"אם הפונקציה SUM בתא D42 היתה יכולה לדבר, היא היתה אומרת כך: סכם את הערכים בתאים D38, ‏D39, ‏D40 ו- D41."]
[null,null,"פריט","סכום",null,"פריט","סכום"]
[null,null,"לחם",50,null,"לחם",50]
[null,null,"סופגניות",100,null,"סופגניות",100]
[null,null,"עוגיות",40,null,"עוגיות",40]
[null,null,"עוגות",50,null,"עוגות",50]
[null,null,"פשטידות",20,null,"פשטידות",20]
[]
[{"$nulls":3},{"$f":"VLOOKUP(C43,C37:D41,2,FALSE)","v":{"$error":"#N/A"}},null,"מאפה",{"$f":"IFERROR(VLOOKUP(F43,F37:G41,2,FALSE),\"\")","v":""}]

{"sheet":"פונקציות מותנות","index":9,"n_rows":123,"n_cols":34,"rows_kept":123}
["פונקציות מותנות - SUMIF"]
["פונקציות מותנות מאפשרות לך לחשב את הסכום, הממוצע או הספירה או לקבל את ערך המינימום או המקסימום של טווח בהתבסס על תנאי נתון, או קריטריונים שאתה מציין. לדוגמה, מבין כל הפירות ברשימה, כמה תפוחים יש? או, כמה תפוזים הם מסוג ולנסיה?",null,"פירות","סכום",null,"פירות","סוג","סכום",{"$nulls":17},"פירות",null,"תפוחים",null,"תפוזים",null,"בננות",null,"לימונים"]
["הפונקציה SUMIF מאפשרת לך לסכם טווח אחד בהתבסס על קריטריון ספציפי שאתה מחפש בטווח אחר, כגון מספר התפוחים שיש לך. בחר את תא D17 והקלד ‎=SUMIF(C3:C14,C17,D3:D14)‎. הפונקציה SUMIF בנויה באופן הבא:",null,"תפוחים",50,null,"תפוחים","פוג'י",50,{"$nulls":17},"תפוחים",null,"פוג'י",null,"ולנסיה",null,"קבנדיש",null,"לימקווט"]
["‎=SUMIF(C3:C14,C17,D3:D14)‎",null,"תפוזים",20,null,"תפוזים","ולנסיה",20,{"$nulls":17},"תפוזים",null,"יונתן",null,"טבורי",null,"פלאטנו",null,"יוריקה"]
["באיזה טווח ברצונך להתבונן?",null,"בננות",60,null,"בננות","קבנדיש",60,{"$nulls":17},"בננות"]
["איזה ערך (טקסט או מספר) ברצונך לחפש?",null,"לימונים",40,null,"לימונים","לימקווט",40,{"$nulls":17},"לימונים"]
["עבור כל התאמה שנמצאת, באיזה טווח ברצונך לסכם?",null,"תפוחים",50,null,"תפוחים","יונתן",50]
["הפונקציה SUMIFS דומה ל- SUMIF, אך היא מאפשרת לך להשתמש בקריטריונים מרובים. לכן, בדוגמה זו, תוכל לחפש פרי וסוג, במקום לפי פרי בלבד. בחר את תא H17 והקלד ‎=SUMIFS(H3:H14,F3:F14,F17,G3:G14,G17)‎. הפונקציה SUMIFS בנויה באופן הבא:\n",null,"תפוזים",20,null,"תפוזים","טבורי",20]
["‎=SUMIFS(H3:H14,F3:F14,F17,G3:G14,G17)‎",null,"בננות",60,null,"בננות","פלאטנו",60]
["איזה טווח ברצונך לסכם?",null,"לימונים",40,null,"לימונים","יוריקה",40]
["זהו הטווח הראשון שבו יש לחפש התאמות",null,"תפוחים",50,null,"תפוחים","יונתן",50]
["זהו הקריטריון עבור ההתאמה הראשונה",null,"תפוזים",20,null,"תפוזים","טבורי",20]
["זהו הטווח השני שבו יש לחפש התאמות",null,"בננות",60,null,"בננות","קבנדיש",60]
["זהו הקריטריון עבור ההתאמה השניה",null,"לימונים",40,null,"לימונים","יוריקה",40]
["עצה ממומחים\nכל אחד מתאי הפירות והסוגים כולל רשימה נפתחת שבה ניתן לבחור פירות שונים. נסה זאת, וצפה בנוסחאות מתעדכנות באופן אוטומטי."]
["פתח לקבלת פרטים נוספים",null,"פירות","SUMIF",null,"פירות","סוג","SUMIFS"]
["השלב הבא",null,"תפוחים",null,null,"תפוזים","ולנסיה"]
["פונקציות מותנות - COUNTIF"]
["הפונקציות COUNTIF ו- COUNTIFS מאפשרות לך לספור ערכים בטווח בהתבסס על קריטריון שאתה מציין. הן מעט שונות מפונקציות ה- IF וה- IFS האחרות, בכך שהן כוללות רק טווח קריטריון, וקריטריון. הן אינן מעריכות טווח אחד, ולאחר מכן מחפשות בטווח אחר כדי לסכם."]
["בחר את תא D64 והקלד ‎=COUNTIF(C50:C61,C64)‎. הפונקציה COUNTIF בנויה באופן הבא:"]
["‎=COUNTIF(C50:C61,C64)‎"]
["באיזה טווח ברצונך להתבונן?"]
["איזה ערך (טקסט או מספר) ברצונך לחפש?"]
["הפונקציה COUNTIFS דומה ל- SUMIF, אך היא מאפשרת לך להשתמש בקריטריונים מרובים. לכן, בדוגמה זו, תוכל לחפש פרי וסוג, במקום לפי פרי בלבד. בחר את התא H64 והקלד ‎=COUNTIFS(F50:F61,F64,G50:G61,G64). הפונקציה COUNTIFS בנויה באופן הבא:\n"]
["‎=COUNTIFS(F50:F61,F64,G50:G61,G64)‎"]
["זהו הטווח הראשון שיש לספור"]
["זהו הקריטריון עבור ההתאמה הראשונה"]
["זהו הטווח השני שיש לספור"]
["זהו הקריטריון עבור ההתאמה השניה"]
["פתח לקבלת פרטים נוספים"]
["הבא"]
["פונקציות מותנות נוספות"]
["ראית כבר את הפונקציות SUMIF‏, SUMIFS‏, COUNTIF ו- COUNTIFS. עכשיו תוכל להתנסות בעצמך בפונקציות האחרות, כגון AVERAGEIF/S‏, MAXIFS‏, MINIFS. לכולן יש אותו מבנה, ולכן ברגע שתכתוב נוסחה אחת, תוכל פשוט להחליף את שם הפונקציה בשם הרצוי. כתבנו את כל הפונקציות שתזדקק להן עבור תא E106, כדי שתוכל להעתיק/להדביק אותן, או לנסות להקליד אותן בעצמך לצורך תרגול.\n\n SUMIF \t‎=SUMIF(C92:C103,C106,E92:E103)‎ \nSUMIFS \t‎=SUMIFS(E92:E103,C92:C103,C106,D92:D103,D106)‎ \nAVERAGEIF \t‎=AVERAGEIF(C92:C103,C106,E92:E103)‎ \nAVERAGEIFS\t‎=AVERAGEIFS(E92:E103,C92:C103,C106,D92:D103,D106)\nCOUNTIF \t‎=COUNTIF(C92:C103,C106)‎\nCOUNTIFS \t‎=COUNTIFS(C92:C103,C106,D92:D103,D106)‎ \nMAXIFS \t‎=MAXIFS(E92:E103,C92:C103,C106,D92:D103,D106)\nMINIFS \t‎=MINIFS(E92:E103,C92:C103,C106,D92:D103,D106)‎\n"]
["פתח לקבלת פרטים נוספים"]
["הבא"]
["SUMIF עם ארגומנט ערך"]
["הנה דוגמה לפונקציה SUMIF המשתמשת בסימן 'גדול מ' (‎>‎) כדי למצוא את כל הערכים הגדולים יותר מסכום נתון:"]
[{"$f":"SUMIF(D118:D122,\">=50\")","v":200}]
["סכם כמה ערכים בהתבסס על קריטריון זה:"]
["...עיין בתאים אלה...\n "]
["…ואם הערך גדול מ- 50, סכם אותו.\n "]
["הערה: אם אתה רואה שאתה יוצר הרבה נוסחאות מותנות, אולי טבלת PivotTable תהיה פתרון טוב יותר. עיין במאמר זה בנושא PivotTable לקבלת מידע נוסף."]
["מידע נוסף באינטרנט"]
["הכל אודות הפונקציה SUMIF"]
["הכל אודות הפונקציה SUMIFS"]
["הכל אודות הפונקציה COUNTIF"]
["הכל אודות הפונקציה COUNTIFS"]
["הכל אודות הפונקציה AVERAGEIF"]
["הכל אודות הפונקציה AVERAGEIFS",null,"פירות","סכום",null,"פירות","סוג","סכום"]
["הכל אודות הפונקציה MINIFS",null,"תפוחים",50,null,"תפוחים","פוג'י",50]
["הכל אודות הפונקציה MAXIFS",null,"תפוזים",20,null,"תפוזים","ולנסיה",20]
["יצירת רשימה נפתחת",null,"בננות",60,null,"בננות","קבנדיש",60]
["הדרכה מקוונת בחינם של Excel",null,"לימונים",40,null,"לימונים","לימקווט",40]
["חזור למעלה",null,"תפוחים",50,null,"תפוחים","יונתן",50]
["הבא",null,"תפוזים",20,null,"תפוזים","טבורי",20]
[null,null,"בננות",60,null,"בננות","פלאטנו",60]
[null,null,"לימונים",40,null,"לימונים","יוריקה",40]
[null,null,"תפוחים",50,null,"תפוחים","יונתן",50]
[null,null,"תפוזים",20,null,"תפוזים","טבורי",20]
[null,null,"בננות",60,null,"בננות","קבנדיש",60]
[null,null,"לימונים",40,null,"לימונים","יוריקה",40]
[]
[null,null,"פירות","COUNTIF",null,"פירות","סוג","COUNTIFS"]
[null,null,"תפוחים",{"$f":"COUNTIF(C50:C61,C64)","v":3},null,"תפוזים","ולנסיה",{"$f":"COUNTIFS(F50:F61,F64,G50:G61,G64)","v":1}]
{"$rows_empty":26}
[null,null,"פירות","סוג","סכום"]
[null,null,"תפוחים","פוג'י",50]
[null,null,"תפוזים","ולנסיה",20]
[null,null,"בננות","קבנדיש",60]
[null,null,"לימונים","לימקווט",40]
[null,null,"תפוחים","יונתן",50]
[null,null,"תפוזים","טבורי",20]
[null,null,"בננות","פלאטנו",60]
[null,null,"לימונים","יוריקה",40]
[null,null,"תפוחים","יונתן",50]
[null,null,"תפוזים","טבורי",20]
[null,null,"בננות","קבנדיש",60]
[null,null,"לימונים","יוריקה",40]
[]
[null,null,"פירות","סוג","נסה זאת"]
[null,null,"לימונים","יוריקה",{"$f":"AVERAGEIFS(E92:E103,C92:C103,C106,D92:D103,D106)","v":40}]
{"$rows_empty":10}
[null,null,"פריט","סכום"]
[null,null,"לחם",50]
[null,null,"סופגניות",100]
[null,null,"עוגיות",40]
[null,null,"עוגות",50]
[null,null,"פשטידות",20]
[{"$nulls":3},{"$f":"SUMIF(D118:D122,\">=50\")","v":200}]

{"sheet":"אשף הפונקציות","index":10,"n_rows":14,"n_cols":4,"rows_kept":14}
["תן לאשף הפונקציות להנחות אותך"]
["אם אתה יודע את השם של הפונקציה הרצויה, אך אינך בטוח כיצד לבנות אותה, באפשרותך להיעזר באשף הפונקציות.\n"]
["בחר את תא D10 ולאחר מכן עבור אל 'נוסחות' > 'הוספת פונקציה' > הקלד VLOOKUP בתיבה 'חפש אחר פונקציה' ולחץ על 'עבור'. כשאתה רואה את הפונקציה VLOOKUP מסומנת, לחץ על 'אישור' בחלק התחתון. בעת בחירת פונקציה ברשימה, Excel יציג את התחביר שלה.\n"]
["לאחר מכן, הזן את הארגומנטים של הפונקציה בתיבות הטקסט המתאימות. כאשר תזין כל אחד מהם, Excel יעריך אותו ויראה לך את התוצאה שלו, עם התוצאה הסופית בחלק התחתון. כאשר תיכנס לכל מקטע, הקריטריון עבור כל ארגומנט יפורט בחלק התחתון של הטופס. לחץ על 'אישור' לאחר שתסיים, ו- Excel יזין את הנוסחה עבורך.\n\n\n",null,"פירות","סכום"]
["הסתכל כאן\nאתה אמור לקבל את הנוסחה ‎=VLOOKUP(C10,C5:D8,2,FALSE)‎",null,"תפוחים",50]
["טוב לדעת\nבאפשרותך להקליד הפניות לתאים ולטווחים או לבחור אותם באמצעות העכבר.",null,"תפוזים",20]
["טוב לדעת\nכאשר תיכנס למקטע של כל ארגומנט, תיאור הארגומנט יוצג בסמוך לחלק התחתון של הטופס, מעל 'תוצאת הנוסחה'.\n",null,"בננות",60]
["הקודם",null,"לימונים",40]
["הבא"]
["מידע נוסף באינטרנט",null,"תפוחים",{"$f":"VLOOKUP(C10,C5:D8,2,FALSE)","v":50}]
["מבט כולל על נוסחאות ב- Excel"]
["פונקציות של Excel (לפי קטגוריה)"]
["פונקציות של Excel (בסדר אלפביתי)"]
["הדרכה מקוונת בחינם של Excel"]

{"sheet":"שגיאות בנוסחאות","index":11,"n_rows":36,"n_cols":4,"rows_kept":36}
["תיקון שגיאות בנוסחאות"]
["בנקודת זמן כלשהי, תיתקל בנוסחה הכוללת שגיאה, ש- Excel יציג אותה בתבנית #שם-שגיאה. שגיאות יכולות להיות מועילות, מכיוון שהן מצביעות על משהו שאינו עובד כראוי, אך התיקון שלהן עלול להיות משימה קשה. למרבה המזל, ישנן כמה אפשרויות שיכולות לעזור לך לאתר את מקור השגיאה ולפתור אותה.\n"]
["בדיקת שגיאות - עבור אל 'נוסחאות' > 'בדיקת שגיאות'. תיטען תיבת דו-שיח שתציין את הגורם הכללי לשגיאה הספציפית. בתא D9, הגורם לשגיאה #N/A הוא שאין ערך התואם ל- \"תפוח\". באפשרותך לתקן זאת על-ידי שימוש בערך קיים, העלמת השגיאה באמצעות IFERROR, או התעלמות ממנה בידיעה שהיא תיעלם כשתשתמש בערך קיים.\n",null,"פירות","סכום"]
["אם תלחץ על 'עזרה על שגיאה זו', ייפתח נושא עזרה המתייחס להודעת השגיאה באופן ספציפי. אם תלחץ על 'הראה צעדי חישוב', תיטען תיבת דו-שיח 'הערכת נוסחה'.\n",null,"תפוחים",50]
["בכל פעם שתלחץ על 'הערך', Excel יבחן את הנוסחה מקטע אחר מקטע. הוא לא יציין בהכרח מדוע השגיאה מתרחשת, אך הוא יצביע היכן. משם, עיין בנושא העזרה כדי להסיק מה השתבש בנוסחה.\n",null,"תפוזים",20]
["ניסוי\nמה השתבש כאן? רמז: אנחנו מנסים לסכם (SUM) את כל הפריטים.",null,"בננות",60]
["טוב לדעת\nלחיצה על 'אפשרויות' תאפשר לך להגדיר את הכללים הקובעים מתי Excel מציג שגיאות ומתי הוא מתעלם מהן.\n",null,"לימונים",40]
["הקודם"]
["הבא",null,"תפוח",{"$f":"VLOOKUP(C9,C3:D7,2,FALSE)","v":{"$error":"#N/A"}}]
["מידע נוסף באינטרנט"]
["זיהוי שגיאות בנוסחאות"]
["כיצד להימנע מנוסחאות שגויות"]
["הערכת נוסחה מקוננת צעד אחר צעד"]
["הדרכה מקוונת בחינם של Excel"]
{"$rows_empty":15}
[null,null,"פירות","סכום"]
[null,null,"תפוחים",50]
[null,null,"תפוזים",20]
[null,null,"בננות",60]
[null,null,"לימונים",40]
[]
[null,null,"סה\"כ",{"$f":"sume(D31:D34)","v":{"$error":"#NAME?"}}]

{"sheet":"מידע נוסף","index":12,"n_rows":5,"n_cols":1,"rows_kept":5}
["יש לך שאלות נוספות לגבי Excel?"]
["הקש ALT+א והקלד את מה שברצונך לברר."]
["המשך כך. יש עוד מידע שאפשר ללמוד עם Excel:"]
["קהילה: שאל שאלות וצור קשר עם מעריצים אחרים של Excel.\n"]
["מה עוד חדש?\nמנויי Office 365 מקבלים עדכונים תדירים ותכונות חדשות.\n\n"]